lending/lending_fUSD_20250122
["ID","MTS","AMOUNT","RATE_DAILY","PERIOD"]
[349941506,1737526232068,-1042.6878,0.00019893,2]
[349941507,1737526232077,-205.57757024,0.000199,2]
[349941508,1737526232087,-224.74937242,0.00019973,2]
[349941509,1737526232096,-1044.83,0.00019973,2]
[349941510,1737526232105,-205.35,0.0001998,2]
[349941511,1737526232115,-219.32641021,0.0001998,2]
[349941512,1737526232124,-205.35,0.0001998,2]
[349941513,1737526232133,-205.35,0.0001998,2]
[349941514,1737526232144,-205.35,0.0001998,2]
[349941515,1737526232153,-205.35,0.0001998,2]
[349941516,1737526232163,-205.35,0.0001998,2]
[349941517,1737526232172,-205.35,0.0001998,2]
[349941518,1737526232183,-205.35,0.0001998,2]
[349941519,1737526232192,-205.35,0.0001998,2]
[349941520,1737526232202,-205.35,0.0001998,2]
[349941521,1737526232211,-205.35,0.00019981,2]
[349941522,1737526232221,-205.35,0.00019981,2]
[349941523,1737526232230,-205.35,0.00019981,2]
[349941524,1737526232240,-559.0,0.00019982,2]
[349941525,1737526232249,-205.35,0.00019982,2]
[349941526,1737526232259,-205.35,0.00019982,2]
[349941527,1737526232268,-205.35,0.00019983,2]
[349941528,1737526232277,-28922.24121207,0.00019988,2]
[349941529,1737526232305,-1576.99318965,0.00019988,2]
[349941530,1737526232316,-335.08475,0.00019988,2]
[349941531,1737526232347,-434.95065305,0.00019988,2]
[349941532,1737526232357,-500.0,0.00019989,2]
[349941533,1737526232366,-653.76730036,0.00019989,2]
[349941534,1737526232395,-648.899979,0.00019989,2]
[349941566,1737526237781,-1056.8,0.00019989,2]
[349941567,1737526237863,-936.36272064,0.00019989,2]
[349941568,1737526237873,-1189.28,0.00019989,2]
[349941569,1737526237886,-1389.44,0.00019989,2]
[349941570,1737526237895,-500.0,0.00019989,2]
[349941571,1737526237904,-923.71,0.00019989,2]
[349941572,1737526237914,-2388.04,0.00019989,2]
[349941573,1737526237923,-500.0,0.00019989,2]
[349941574,1737526237933,-500.0,0.00019989,2]
[349941575,1737526237942,-662.69,0.00019989,2]
[349941576,1737526237952,-500.0,0.00019989,2]
[349941577,1737526237964,-848.56,0.00019989,2]
[349941578,1737526237975,-594.84,0.00019989,2]
[349941579,1737526237984,-500.0,0.00019989,2]
[349941580,1737526237994,-500.0,0.00019989,2]
[349941581,1737526238004,-1334.35,0.00019989,2]
[349941582,1737526238015,-500.0,0.00019989,2]
[349941583,1737526238025,-500.0,0.00019989,2]
[349941584,1737526238035,-669.47883399,0.00019989,2]
[349941585,1737526238045,-23486.97824437,0.0001999,2]
[349941586,1737526238056,-8300.0,0.0001999,2]
[349941587,1737526238080,-1875.18397219,0.0001999,2]
[349941588,1737526238093,-916.95976942,0.0001999,2]
[349941589,1737526238104,-8392.13832755,0.0001999,2]
[349941591,1737526240211,-322.310568,0.0001999,2]
[349941592,1737526240224,-310854.581,0.0001999,2]
[349941593,1737526240236,-668.57399671,0.0001999,2]
[349941594,1737526242666,150.0,0.00019362,2]
[349941604,1737526242953,-1667.46727694,0.0001999,2]
[349941605,1737526243190,-12004.1808999,0.0001999,2]
[349941634,1737526245779,-500.0,0.00019989,2]
[349941636,1737526245791,-2845.69486,0.0001999,2]
[349941641,1737526245965,-1862.67228001,0.0001999,2]
[349941642,1737526246070,-1440.4000192,0.0001999,2]
[349941644,1737526320047,155.5,0.00010137,2]
[349941645,1737526320269,155.5,0.00018594,2]
[349941646,1737526358118,331.96,0.00017117,2]
[349941647,1737526599204,171.52,0.00019235,30]
[349941648,1737526623522,1000.0,0.00019018,2]
[349941650,1737526935178,250.0,0.00019009,2]
[349941651,1737527135864,162.92,0.00019009,2]
[349941655,1737527163845,153.44,0.00010137,2]
[349941664,1737527278761,315.36,0.00017092,2]
[349941665,1737527279207,315.36,0.00019355,2]
[349941690,1737527432039,-409.81007526,0.000195,2]
[349941691,1737527432190,-310.35974067,0.000195,2]
[349941692,1737527432275,-1573.46568944,0.000195,2]
[349941693,1737527432503,-706.36449463,0.000195,2]
[349941695,1737527432512,-3000.0,0.0001979,2]
[349941697,1737527432523,-324.8558932,0.00019864,2]
[349941699,1737527432532,-300.0,0.00019888,2]
[349941700,1737527432542,-3925.66346488,0.00019889,2]
[349941701,1737527432551,-1395.3131127,0.0001989,2]
[349941702,1737527432560,-1489.6495,0.00019891,2]
[349941703,1737527432570,-182.2693,0.00019891,2]
[349941704,1737527432580,-256.5484869,0.00019894,2]
[349941705,1737527432589,-2293.85,0.000199,2]
[349941706,1737527432600,-835.864,0.000199,2]
[349941707,1737527432609,-205.57757017,0.000199,2]
[349941708,1737527432619,-150.0,0.00019977,2]
[349941709,1737527432628,-150.0,0.00019977,2]
[349941710,1737527432638,-219.32641021,0.00019984,2]
[349941711,1737527432647,-500.0,0.00019989,2]
[349941713,1737527432657,-642.89,0.00019989,2]
[349941715,1737527432667,-500.0,0.00019989,2]
[349941717,1737527432676,-500.0,0.00019989,2]
[349941719,1737527432685,-573.89,0.00019989,2]
[349941721,1737527432695,-500.0,0.00019989,2]
[349941723,1737527432704,-769.38,0.00019989,2]
[349941725,1737527432713,-945.66,0.00019989,2]
[349941727,1737527432722,-500.0,0.00019989,2]
[349941729,1737527432732,-675.0,0.00019989,2]
[349941731,1737527432741,-1121.91,0.00019989,2]
[349941733,1737527432751,-502.45361303,0.00019989,2]
[349941735,1737527432760,-500.0,0.00019989,2]
[349941737,1737527432769,-500.0,0.00019989,2]
[349941739,1737527432778,-500.0,0.00019989,2]
[349941741,1737527432787,-500.0,0.00019989,2]
[349941743,1737527432797,-758.1,0.00019989,2]
[349941745,1737527432807,-500.0,0.00019989,2]
[349941747,1737527432816,-500.0,0.00019989,2]
[349941749,1737527432825,-600.06,0.00019989,2]
[349941751,1737527432834,-570.76,0.00019989,2]
[349941753,1737527432844,-500.0,0.00019989,2]
[349941755,1737527432854,-500.0,0.00019989,2]
[349941757,1737527432862,-500.0,0.00019989,2]
[349941759,1737527432872,-500.0,0.00019989,2]
[349941761,1737527432881,-554.1,0.00019989,2]
[349941763,1737527432890,-631.65299592,0.00019989,2]
[349941765,1737527432899,-838.54,0.00019989,2]
[349941767,1737527432909,-500.0,0.00019989,2]
[349941769,1737527432917,-500.0,0.00019989,2]
[349941771,1737527432927,-500.0,0.00019989,2]
[349941773,1737527432935,-500.0,0.00019989,2]
[349941775,1737527432946,-500.0,0.00019989,2]
[349941777,1737527432954,-500.0,0.00019989,2]
[349941779,1737527432964,-500.0,0.00019989,2]
[349941781,1737527432973,-557.99,0.00019989,2]
[349941782,1737527432983,-1188.6,0.00019989,2]
[349941784,1737527432992,-1051.87,0.00019989,2]
[349941786,1737527433001,-500.0,0.00019989,2]
[349941788,1737527433010,-500.0,0.00019989,2]
[349941790,1737527433020,-500.0,0.00019989,2]
[349941792,1737527433029,-500.0,0.00019989,2]
[349941794,1737527433039,-500.0,0.00019989,2]
[349941796,1737527433050,-641.38,0.00019989,2]
[349941798,1737527433059,-500.0,0.00019989,2]
[349941800,1737527433069,-1280.2,0.00019989,2]
[349941802,1737527433078,-1104.4,0.00019989,2]
[349941804,1737527433088,-500.0,0.00019989,2]
[349941806,1737527433097,-501.0,0.00019989,2]
[349941808,1737527433106,-500.0,0.00019989,2]
[349941810,1737527433116,-692.32,0.00019989,2]
[349941812,1737527433126,-1219.53,0.00019989,2]
[349941814,1737527433135,-633.88,0.00019989,2]
[349941816,1737527433144,-1606.097205,0.00019989,2]
[349941818,1737527433153,-738.03,0.00019989,2]
[349941820,1737527433163,-500.0,0.00019989,2]
[349941822,1737527433173,-156.159057,0.00019989,2]
[349941824,1737527433182,-500.0,0.00019989,2]
[349941826,1737527433191,-892.25,0.00019989,2]
[349941828,1737527433201,-500.0,0.00019989,2]
[349941830,1737527433210,-500.0,0.00019989,2]
[349941832,1737527433220,-500.0,0.00019989,2]
[349941834,1737527433232,-500.0,0.00019989,2]
[349941836,1737527433242,-1072.35,0.00019989,2]
[349941838,1737527433251,-1043.130634,0.00019989,2]
[349941840,1737527433261,-938.56,0.00019989,2]
[349941842,1737527433271,-1242.89,0.00019989,2]
[349941844,1737527433291,-713.85,0.00019989,2]
[349941846,1737527433306,-312.13724568,0.00019989,2]
[349941848,1737527433318,-1475.67,0.00019989,2]
[349941849,1737527433328,-963.08,0.00019989,2]
[349941852,1737527433341,-500.0,0.00019989,2]
[349941853,1737527433351,-500.0,0.00019989,2]
[349941855,1737527433361,-500.0,0.00019989,2]
[349941857,1737527433371,-698.51,0.00019989,2]
[349941859,1737527433382,-1668.25,0.00019989,2]
[349941861,1737527433398,-615.15,0.00019989,2]
[349941863,1737527433407,-500.0,0.00019989,2]
[349941865,1737527433417,-632.7,0.00019989,2]
[349941867,1737527433427,-500.0,0.00019989,2]
[349941869,1737527433436,-500.0,0.00019989,2]
[349941871,1737527433446,-1111.11,0.00019989,2]
[349941873,1737527433456,-500.0,0.00019989,2]
[349941875,1737527433465,-500.0,0.00019989,2]
[349941877,1737527433475,-500.0,0.00019989,2]
[349941879,1737527433484,-500.0,0.00019989,2]
[349941881,1737527433494,-500.0,0.00019989,2]
[349941883,1737527433504,-576.14,0.00019989,2]
[349941885,1737527433513,-500.0,0.00019989,2]
[349941887,1737527433523,-500.0,0.00019989,2]
[349941889,1737527433533,-1745.57,0.00019989,2]
[349941891,1737527433543,-500.0,0.00019989,2]
[349941893,1737527433554,-1047.97,0.00019989,2]
[349941895,1737527433563,-500.0,0.00019989,2]
[349941897,1737527433573,-500.0,0.00019989,2]
[349941899,1737527433583,-1070.2,0.00019989,2]
[349941901,1737527433592,-609.82424412,0.00019989,2]
[349941903,1737527433602,-375.9457166,0.00019989,2]
[349941905,1737527433616,-500.0,0.00019989,2]
[349941908,1737527433627,-500.0,0.00019989,2]
[349941909,1737527433636,-797.5,0.00019989,2]
[349941911,1737527433645,-1135.96,0.00019989,2]
[349941913,1737527433655,-500.0,0.00019989,2]
[349941915,1737527433664,-500.0,0.00019989,2]
[349941917,1737527433674,-1137.16,0.00019989,2]
[349941919,1737527433684,-862.81,0.00019989,2]
[349941921,1737527433694,-1069.94,0.00019989,2]
[349941923,1737527433704,-500.0,0.00019989,2]
[349941925,1737527433714,-946.98,0.00019989,2]
[349941927,1737527433724,-500.0,0.00019989,2]
[349941929,1737527433734,-500.0,0.00019989,2]
[349941931,1737527433743,-1535.77,0.00019989,2]
[349941933,1737527433753,-500.0,0.00019989,2]
[349941935,1737527433763,-500.0,0.00019989,2]
[349941937,1737527433772,-719.87,0.00019989,2]
[349941939,1737527433782,-500.0,0.00019989,2]
[349941941,1737527433791,-500.0,0.00019989,2]
[349941943,1737527433801,-880.71,0.00019989,2]
[349941945,1737527433811,-500.0,0.00019989,2]
[349941947,1737527433820,-519.28,0.00019989,2]
[349941949,1737527433829,-4392.18,0.00019989,2]
[349941950,1737527433839,-527.75566491,0.00019989,2]
[349941952,1737527433849,-647.85,0.00019989,2]
[349941955,1737527433859,-917.89,0.00019989,2]
[349941956,1737527433869,-726.19,0.00019989,2]
[349941959,1737527433879,-1543.77,0.00019989,2]
[349941960,1737527433888,-1322.48,0.00019989,2]
[349941962,1737527433898,-710.43,0.00019989,2]
[349941964,1737527433909,-500.0,0.00019989,2]
[349941966,1737527433919,-1889.74,0.00019989,2]
[349941968,1737527433928,-1105.15,0.00019989,2]
[349941971,1737527433938,-1042.45,0.00019989,2]
[349941972,1737527433948,-500.0,0.00019989,2]
[349941974,1737527433957,-1148.36,0.00019989,2]
[349941976,1737527433967,-500.0,0.00019989,2]
[349941978,1737527433976,-500.0,0.00019989,2]
[349941980,1737527433986,-1878.76,0.00019989,2]
[349941982,1737527433995,-2675.52,0.00019989,2]
[349941984,1737527434005,-500.0,0.00019989,2]
[349941986,1737527434014,-1412.27,0.00019989,2]
[349941988,1737527434024,-500.0,0.00019989,2]
[349941990,1737527434034,-2711.3,0.00019989,2]
[349941992,1737527434044,-2254.37,0.00019989,2]
[349941994,1737527434055,-1136.71,0.00019989,2]
[349941997,1737527434064,-500.0,0.00019989,2]
[349941998,1737527434074,-1204.04,0.00019989,2]
[349942001,1737527434084,-500.0,0.00019989,2]
[349942003,1737527434094,-809.97,0.00019989,2]
[349942005,1737527434103,-981.83,0.00019989,2]
[349942007,1737527434112,-513.58,0.00019989,2]
[349942009,1737527434122,-500.0,0.00019989,2]
[349942010,1737527434131,-1154.24,0.00019989,2]
[349942013,1737527434140,-719.96,0.00019989,2]
[349942015,1737527434150,-500.0,0.00019989,2]
[349942016,1737527434159,-907.93,0.00019989,2]
[349942018,1737527434169,-521.6,0.00019989,2]
[349942020,1737527434179,-1176.09,0.00019989,2]
[349942022,1737527434189,-540.55,0.00019989,2]
[349942025,1737527434199,-510.87666195,0.00019989,2]
[349942026,1737527434208,-1296.95,0.00019989,2]
[349942029,1737527434219,-3111.48,0.00019989,2]
[349942031,1737527434231,-545.86,0.00019989,2]
[349942033,1737527434241,-500.0,0.00019989,2]
[349942035,1737527434250,-500.0,0.00019989,2]
[349942037,1737527434259,-1323.4,0.00019989,2]
[349942039,1737527434269,-1655.45,0.00019989,2]
[349942041,1737527434279,-3158.5,0.00019989,2]
[349942043,1737527434289,-535.89,0.00019989,2]
[349942045,1737527434300,-1300.21,0.00019989,2]
[349942047,1737527434310,-500.0,0.00019989,2]
[349942049,1737527434320,-873.91,0.00019989,2]
[349942051,1737527434329,-1230.94,0.00019989,2]
[349942053,1737527434339,-2696.0,0.00019989,2]
[349942054,1737527434348,-500.0,0.00019989,2]
[349942056,1737527434357,-1139.73,0.00019989,2]
[349942058,1737527434367,-551.65,0.00019989,2]
[349942060,1737527434377,-500.0,0.00019989,2]
[349942061,1737527434386,-500.0,0.00019989,2]
[349942062,1737527434396,-827.5,0.00019989,2]
[349942064,1737527434405,-500.0,0.00019989,2]
[349942065,1737527434414,-1331.55,0.00019989,2]
[349942067,1737527434424,-1275.89,0.00019989,2]
[349942069,1737527434433,-500.0,0.00019989,2]
[349942071,1737527434443,-656.6,0.00019989,2]
[349942073,1737527434452,-2.24473048,0.00019989,2]
[349942076,1737527434467,-1490.82526952,0.00019989,2]
[349942078,1737527434476,-500.0,0.00019989,2]
[349942079,1737527434485,-5472.63,0.00019989,2]
[349942080,1737527434495,-4460.61,0.00019989,2]
[349942081,1737527434505,-844.84,0.00019989,2]
[349942082,1737527434515,-3505.75,0.00019989,2]
[349942083,1737527434525,-500.0,0.00019989,2]
[349942084,1737527434534,-891.82,0.00019989,2]
[349942085,1737527434544,-885.22,0.00019989,2]
[349942086,1737527434554,-500.0,0.00019989,2]
[349942087,1737527434564,-2357.13,0.00019989,2]
[349942088,1737527434574,-1500.02,0.00019989,2]
[349942089,1737527434584,-3359.83,0.00019989,2]
[349942090,1737527434593,-959.4,0.00019989,2]
[349942091,1737527434602,-2288.53,0.00019989,2]
[349942092,1737527434612,-509.68041152,0.00019989,2]
[349942093,1737527434621,-4007.48,0.00019989,2]
[349942094,1737527434630,-2147.07,0.00019989,2]
[349942095,1737527434639,-500.0,0.00019989,2]
[349942096,1737527434649,-4616.57,0.00019989,2]
[349942097,1737527434658,-500.0,0.00019989,2]
[349942098,1737527434667,-512.24,0.00019989,2]
[349942099,1737527434677,-1305.14,0.00019989,2]
[349942100,1737527434686,-698.98,0.00019989,2]
[349942101,1737527434695,-1866.36,0.00019989,2]
[349942102,1737527434720,-671.55,0.00019989,2]
[349942103,1737527434729,-500.0,0.00019989,2]
[349942104,1737527434740,-1604.86,0.00019989,2]
[349942105,1737527434749,-974.64,0.00019989,2]
[349942106,1737527434759,-500.0,0.00019989,2]
[349942107,1737527434768,-1276.75,0.00019989,2]
[349942108,1737527434777,-500.0,0.00019989,2]
[349942109,1737527434786,-2455.82,0.00019989,2]
[349942110,1737527434795,-500.0,0.00019989,2]
[349942111,1737527434806,-500.0,0.00019989,2]
[349942112,1737527434815,-2894.14,0.00019989,2]
[349942113,1737527434824,-500.0,0.00019989,2]
[349942114,1737527434833,-528.93279126,0.00019989,2]
[349942115,1737527434842,-500.0,0.00019989,2]
[349942116,1737527434851,-5619.68,0.00019989,2]
[349942117,1737527434860,-3061.86,0.00019989,2]
[349942118,1737527434869,-1268.89,0.00019989,2]
[349942119,1737527434879,-813.21,0.00019989,2]
[349942120,1737527434889,-500.0,0.00019989,2]
[349942121,1737527434899,-514.16,0.00019989,2]
[349942122,1737527434908,-1566.81,0.00019989,2]
[349942123,1737527434917,-635.08,0.00019989,2]
[349942124,1737527434927,-500.0,0.00019989,2]
[349942125,1737527434936,-500.0,0.00019989,2]
[349942126,1737527434945,-988.77,0.00019989,2]
[349942127,1737527435137,-500.0,0.00019989,2]
[349942128,1737527435149,-500.0,0.00019989,2]
[349942129,1737527435160,-500.0,0.00019989,2]
[349942130,1737527435170,-500.0,0.00019989,2]
[349942131,1737527435179,-570.05,0.00019989,2]
[349942132,1737527435188,-691.74,0.00019989,2]
[349942133,1737527435197,-1278.75,0.00019989,2]
[349942134,1737527435206,-3262.97,0.00019989,2]
[349942135,1737527435216,-688.07,0.00019989,2]
[349942136,1737527435226,-1117.88,0.00019989,2]
[349942137,1737527435238,-500.0,0.00019989,2]
[349942138,1737527435248,-500.0,0.00019989,2]
[349942139,1737527435257,-500.0,0.00019989,2]
[349942140,1737527435267,-500.0,0.00019989,2]
[349942141,1737527435276,-500.0,0.00019989,2]
[349942142,1737527435285,-500.0,0.0001999,2]
[349942143,1737527435295,-500.0,0.0001999,2]
[349942144,1737527435306,-466.4174585,0.0001999,2]
[349942145,1737527435316,-500.0,0.0001999,2]
[349942146,1737527435325,-500.0,0.0001999,2]
[349942147,1737527435334,-508.65996587,0.0001999,2]
[349942148,1737527435344,-174.01836395,0.0001999,2]
[349942149,1737527435353,-500.0,0.0001999,2]
[349942150,1737527435362,-500.0,0.0001999,2]
[349942151,1737527435371,-267.30638872,0.0001999,2]
[349942152,1737527435380,-507.87231666,0.0001999,2]
[349942153,1737527435390,-509.02929634,0.0001999,2]
[349942154,1737527435400,-500.0,0.0001999,2]
[349942155,1737527435409,-500.0,0.0001999,2]
[349942156,1737527435420,-504.19820347,0.0001999,2]
[349942157,1737527435431,-500.0,0.0001999,2]
[349942158,1737527435440,-505.8313873,0.0001999,2]
[349942159,1737527435450,-500.0,0.0001999,2]
[349942160,1737527435459,-500.0,0.0001999,2]
[349942161,1737527435470,-513.74144362,0.0001999,2]
[349942162,1737527435481,-508.68190567,0.0001999,2]
[349942163,1737527435491,-500.0,0.0001999,2]
[349942164,1737527435501,-500.0,0.0001999,2]
[349942165,1737527435511,-500.0,0.0001999,2]
[349942166,1737527435522,-500.0,0.0001999,2]
[349942167,1737527435533,-200.0,0.0001999,2]
[349942168,1737527435544,-500.0,0.0001999,2]
[349942169,1737527435554,-500.0,0.0001999,2]
[349942170,1737527435564,-500.0,0.0001999,2]
[349942171,1737527435574,-500.0,0.0001999,2]
[349942172,1737527435583,-500.0,0.0001999,2]
[349942173,1737527435594,-500.0,0.0001999,2]
[349942174,1737527435603,-500.0,0.0001999,2]
[349942175,1737527435612,-500.0,0.0001999,2]
[349942176,1737527435623,-460.30776382,0.0001999,2]
[349942177,1737527435632,-500.0,0.0001999,2]
[349942178,1737527435642,-500.0,0.0001999,2]
[349942179,1737527435652,-500.0,0.0001999,2]
[349942180,1737527435663,-500.0,0.0001999,2]
[349942181,1737527435673,-500.0,0.0001999,2]
[349942182,1737527435682,-500.0,0.0001999,2]
[349942183,1737527435691,-553.89,0.0001999,2]
[349942184,1737527435701,-500.0,0.0001999,2]
[349942185,1737527435710,-825.58,0.0001999,2]
[349942186,1737527435720,-500.0,0.0001999,2]
[349942187,1737527435730,-500.0,0.0001999,2]
[349942188,1737527435739,-500.0,0.0001999,2]
[349942189,1737527435749,-510.88393793,0.0001999,2]
[349942190,1737527435758,-500.0,0.0001999,2]
[349942191,1737527435767,-500.0,0.0001999,2]
[349942192,1737527435776,-500.0,0.0001999,2]
[349942193,1737527435786,-500.0,0.0001999,2]
[349942194,1737527435795,-500.0,0.0001999,2]
[349942195,1737527435807,-501.73902795,0.0001999,2]
[349942196,1737527435816,-500.0,0.0001999,2]
[349942197,1737527435826,-500.0,0.0001999,2]
[349942198,1737527435840,-569.97737876,0.0001999,2]
[349942199,1737527435850,-500.0,0.0001999,2]
[349942200,1737527435859,-500.0,0.0001999,2]
[349942201,1737527435868,-500.0,0.0001999,2]
[349942202,1737527435877,-500.0,0.0001999,2]
[349942203,1737527435886,-500.0,0.0001999,2]
[349942204,1737527435896,-550.16833197,0.0001999,2]
[349942205,1737527435910,-576.17103239,0.0001999,2]
[349942206,1737527435923,-500.0,0.0001999,2]
[349942207,1737527435932,-500.0,0.0001999,2]
[349942208,1737527435941,-500.0,0.0001999,2]
[349942209,1737527435950,-500.0,0.0001999,2]
[349942210,1737527435960,-500.0,0.0001999,2]
[349942211,1737527435969,-500.0,0.0001999,2]
[349942212,1737527435978,-504.36137426,0.0001999,2]
[349942213,1737527435988,-500.0,0.0001999,2]
[349942214,1737527435997,-500.0,0.0001999,2]
[349942215,1737527436006,-500.0,0.0001999,2]
[349942216,1737527436016,-504.63547905,0.0001999,2]
[349942217,1737527436025,-627.02,0.0001999,2]
[349942218,1737527436034,-500.0,0.0001999,2]
[349942219,1737527436043,-500.0,0.0001999,2]
[349942220,1737527436054,-272.77157474,0.0001999,2]
[349942221,1737527436067,-167.32390548,0.0001999,2]
[349942222,1737527436077,-500.0,0.0001999,2]
[349942223,1737527436086,-177.54801677,0.0001999,2]
[349942224,1737527436095,-500.0,0.0001999,2]
[349942225,1737527436105,-500.0,0.0001999,2]
[349942226,1737527436116,-505.29128251,0.0001999,2]
[349942227,1737527436125,-500.0,0.0001999,2]
[349942228,1737527436132,-353.95163579,0.0001999,2]
[349942229,1737527436141,-475.75138448,0.0001999,2]
[349942230,1737527436150,-500.0,0.0001999,2]
[349942231,1737527436158,-500.0,0.0001999,2]
[349942232,1737527436167,-665.06,0.0001999,2]
[349942233,1737527436176,-569.36642969,0.0001999,2]
[349942234,1737527436185,-500.0,0.0001999,2]
[349942235,1737527436195,-500.0,0.0001999,2]
[349942236,1737527436204,-500.0,0.0001999,2]
[349942237,1737527436213,-500.0,0.0001999,2]
[349942238,1737527436223,-500.0,0.0001999,2]
[349942239,1737527436238,-461.79339206,0.0001999,2]
[349942240,1737527436250,-500.0,0.0001999,2]
[349942241,1737527436260,-500.0,0.0001999,2]
[349942242,1737527436271,-502.85668816,0.0001999,2]
[349942243,1737527436280,-526.85338078,0.0001999,2]
[349942244,1737527436290,-500.0,0.0001999,2]
[349942245,1737527436300,-500.0,0.0001999,2]
[349942246,1737527436309,-503.10539826,0.0001999,2]
[349942247,1737527436319,-500.0,0.0001999,2]
[349942248,1737527436331,-500.0,0.0001999,2]
[349942249,1737527436343,-512.94047981,0.0001999,2]
[349942250,1737527436352,-500.0,0.0001999,2]
[349942251,1737527436361,-500.0,0.0001999,2]
[349942252,1737527436371,-500.0,0.0001999,2]
[349942253,1737527436380,-500.0,0.0001999,2]
[349942254,1737527436389,-500.0,0.0001999,2]
[349942255,1737527436398,-500.0,0.0001999,2]
[349942256,1737527436408,-500.0,0.0001999,2]
[349942257,1737527436418,-524.83618453,0.0001999,2]
[349942258,1737527436427,-500.0,0.0001999,2]
[349942259,1737527436437,-500.0,0.0001999,2]
[349942260,1737527436447,-500.0,0.0001999,2]
[349942261,1737527436457,-393.91725039,0.0001999,2]
[349942262,1737527436466,-231.00244917,0.0001999,2]
[349942263,1737527436475,-500.0,0.0001999,2]
[349942264,1737527436484,-500.0,0.0001999,2]
[349942265,1737527436493,-500.0,0.0001999,2]
[349942266,1737527436502,-500.0,0.0001999,2]
[349942267,1737527436512,-988.71,0.0001999,2]
[349942268,1737527436521,-319.71681804,0.0001999,2]
[349942269,1737527436533,-180.28318196,0.0001999,2]
[349942270,1737527436542,-403.04081402,0.0001999,2]
[349942271,1737527436551,-522.93,0.0001999,2]
[349942272,1737527436559,-500.0,0.0001999,2]
[349942273,1737527436568,-500.0,0.0001999,2]
[349942274,1737527436577,-500.0,0.0001999,2]
[349942275,1737527436586,-500.0,0.0001999,2]
[349942276,1737527436595,-500.0,0.0001999,2]
[349942277,1737527436605,-500.0,0.0001999,2]
[349942278,1737527436614,-500.0,0.0001999,2]
[349942279,1737527436623,-1422.2,0.0001999,2]
[349942280,1737527436632,-500.0,0.0001999,2]
[349942281,1737527436642,-500.0,0.0001999,2]
[349942282,1737527436651,-544.1,0.0001999,2]
[349942283,1737527436661,-913.28,0.0001999,2]
[349942284,1737527436670,-500.0,0.0001999,2]
[349942285,1737527436680,-500.0,0.0001999,2]
[349942286,1737527436690,-500.0,0.0001999,2]
[349942287,1737527436699,-1020.36,0.0001999,2]
[349942288,1737527436709,-500.0,0.0001999,2]
[349942289,1737527436719,-551.88,0.0001999,2]
[349942290,1737527436729,-686.7,0.0001999,2]
[349942291,1737527436739,-500.0,0.0001999,2]
[349942292,1737527436748,-1082.36,0.0001999,2]
[349942293,1737527436757,-500.0,0.0001999,2]
[349942294,1737527436766,-500.0,0.0001999,2]
[349942295,1737527436776,-500.0,0.0001999,2]
[349942296,1737527436786,-1878.17,0.0001999,2]
[349942297,1737527436795,-692.4,0.0001999,2]
[349942298,1737527436805,-500.0,0.0001999,2]
[349942299,1737527436814,-2664.43,0.0001999,2]
[349942300,1737527436823,-500.0,0.0001999,2]